fUSD/lending_fUSD_20251109
["ID","MTS","AMOUNT","RATE_DAILY","PERIOD"]
[393464285,1762689040663,-502.0,0.00016869,2]
[393464286,1762689040673,-500.0,0.00016869,2]
[393464287,1762689040684,-897.75,0.00016869,2]
[393464288,1762689040694,-166.66,0.00016894,2]
[393464289,1762689040703,-2300.0,0.000169,6]
[393464290,1762689040714,-310.4960406,0.00016925,2]
[393464291,1762689040724,-180.29,0.00016984,2]
[393464292,1762689040734,-502.0,0.00017006,2]
[393464293,1762689040743,-500.0,0.00017006,2]
[393464294,1762689040753,-27238.41354662,0.00017033,2]
[393464295,1762689040764,-31668.40218331,0.00017095,2]
[393464296,1762689040774,-502.0,0.00017143,2]
[393464297,1762689040783,-500.0,0.00017143,2]
[393464298,1762689040793,-897.75,0.00017143,2]
[393464299,1762689040803,-500.0,0.00017178,2]
[393464300,1762689040818,-500.0,0.00017191,2]
[393464301,1762689040828,-2000.0,0.00017216,2]
[393464302,1762689040838,-1000.0,0.00017216,2]
[393464303,1762689040848,-502.0,0.0001728,2]
[393464304,1762689040858,-500.0,0.0001728,2]
[393464305,1762689040868,-496.71,0.00017315,2]
[393464306,1762689040878,-1000.0,0.00017319,2]
[393464307,1762689040888,-27238.41354662,0.00017322,2]
[393464308,1762689040899,-866.0,0.00017349,2]
[393464309,1762689040908,-31668.40218331,0.00017363,2]
[393464310,1762689040918,-310.4960406,0.00017398,2]
[393464311,1762689040927,-166.9142312,0.00017407,2]
[393464312,1762689040937,-502.0,0.00017417,2]
[393464313,1762689040946,-500.0,0.00017417,2]
[393464314,1762689040957,-897.75,0.00017417,2]
[393464315,1762689040967,-551.5,0.00017478,2]
[393464316,1762689040977,-1231.17535916,0.00017491,2]
[393464317,1762689040986,-3400.0,0.000175,6]
[393464318,1762689040996,-1789.0,0.00017517,2]
[393464319,1762689041005,-1000.0,0.00017534,2]
[393464320,1762689041016,-445.25361079,0.00017537,2]
[393464321,1762689041026,-166.66,0.00017538,2]
[393464322,1762689041035,-502.0,0.00017554,2]
[393464323,1762689041158,-590.60868666,0.00017554,2]
[393464324,1762689041167,-221.92525619,0.00017561,2]
[393464325,1762689041177,-399.0,0.00017591,2]
[393464326,1762689041186,-4600.0,0.000176,6]
[393464327,1762689041196,-27238.41354662,0.00017611,2]
[393464328,1762689041206,-31668.40218331,0.00017632,2]
[393464329,1762689041215,-445.25361079,0.00017636,2]
[393464330,1762689041225,-15784.44872785,0.00017639,2]
[393464331,1762689041234,-1726.84557519,0.00017656,2]
[393464332,1762689041244,-295.35,0.00017662,2]
[393464333,1762689041253,-502.0,0.00017691,2]
[393464334,1762689041263,-897.75,0.00017691,2]
[393464335,1762689041272,-5700.0,0.000177,6]
[393464336,1762689041282,-6997.0,0.00017706,2]
[393464337,1762689041291,-1000.0,0.00017725,2]
[393464338,1762689041301,-1789.0,0.00017727,2]
[393464339,1762689041311,-399.0,0.00017728,2]
[393464340,1762689041320,-445.25361079,0.00017734,2]
[393464341,1762689041330,-1000.0,0.00017753,2]
[393464342,1762689041341,-1789.0,0.00017764,2]
[393464343,1762689041351,-2000.0,0.00017764,2]
[393464344,1762689041364,-1000.0,0.00017778,2]
[393464345,1762689041373,-500.0,0.00017782,2]
[393464346,1762689041383,-1000.0,0.00017783,2]
[393464347,1762689041392,-1100.0,0.000178,6]
[393464348,1762689041403,-1752.761,0.00017803,2]
[393464349,1762689041414,-151.6,0.00017803,2]
[393464350,1762689041424,-208.7762014,0.00017805,2]
[393464351,1762689041435,-150.0,0.00017808,2]
[393464352,1762689041444,-2333.0,0.00017808,2]
[393464353,1762689041454,-3980.04105,0.0001782,2]
[393464354,1762689041463,-1000.0,0.00017824,2]
[393464355,1762689041473,-502.0,0.00017828,2]
[393464356,1762689041483,-3426.55600916,0.0001783,2]
[393464357,1762689041493,-445.25361079,0.00017833,2]
[393464358,1762689041503,-1000.0,0.0001784,2]
[393464359,1762689041512,-1000.0,0.00017847,2]
[393464360,1762689041522,-200.0,0.00017855,2]
[393464361,1762689041531,-2000.0,0.00017856,2]
[393464362,1762689041541,-200.0,0.00017856,2]
[393464363,1762689041551,-1000.0,0.00017856,2]
[393464364,1762689041561,-1000.0,0.00017857,2]
[393464365,1762689041571,-310.4960406,0.00017872,2]
[393464366,1762689041580,-1000.0,0.00017874,2]
[393464367,1762689041590,-150.0,0.00017875,2]
[393464368,1762689041600,-1000.0,0.00017883,2]
[393464369,1762689041609,-1000.0,0.00017885,2]
[393464370,1762689041619,-1000.0,0.00017888,2]
[393464371,1762689041628,-150.0,0.00017889,2]
[393464372,1762689041637,-1000.0,0.00017891,2]
[393464373,1762689041647,-1000.0,0.00017895,2]
[393464374,1762689041656,-187.05498475,0.000179,2]
[393464375,1762689041665,-1100.0,0.000179,6]
[393464376,1762689041675,-27238.41354662,0.000179,2]
[393464377,1762689041684,-3077.82572235,0.000179,2]
[393464378,1762689041693,-31668.40218331,0.000179,2]
[393464379,1762689041703,-190.10232692,0.000179,3]
[393464380,1762689041713,-524.43969462,0.000179,2]
[393464381,1762689041729,-1000.0,0.00017913,2]
[393464382,1762689041744,-445.6988644,0.00017932,2]
[393464383,1762689041755,-1000.0,0.0001794,2]
[393464384,1762689041765,-1000.0,0.00017944,2]
[393464385,1762689041775,-150.0,0.00017945,2]
[393464386,1762689041785,-1789.0,0.00017948,2]
[393464387,1762689041795,-551.5,0.00017951,2]
[393464388,1762689041805,-1000.0,0.00017961,2]
[393464389,1762689041815,-1789.0,0.00017962,2]
[393464390,1762689041826,-1000.0,0.00017964,2]
[393464391,1762689041836,-502.0,0.00017965,2]
[393464392,1762689041846,-897.75,0.00017965,2]
[393464393,1762689041856,-17044.0,0.00017973,2]
[393464394,1762689041866,-595.50227902,0.00017973,2]
[393464395,1762689041876,-500.0,0.00017973,2]
[393464396,1762689041885,-500.0,0.00017973,2]
[393464397,1762689041895,-500.0,0.00017973,2]
[393464398,1762689041905,-562.61261097,0.00017973,2]
[393464399,1762689041915,-501.42288003,0.00017973,2]
[393464400,1762689041924,-501.45300556,0.00017973,2]
[393464401,1762689041934,-500.0,0.00017973,2]
[393464402,1762689041943,-500.0,0.00017973,2]
[393464403,1762689041953,-500.0,0.00017973,2]
[393464404,1762689041963,-647.04253758,0.00017973,2]
[393464405,1762689041972,-500.0,0.00017973,2]
[393464406,1762689041981,-500.0,0.00017973,2]
[393464407,1762689041991,-500.97801948,0.00017973,2]
[393464408,1762689042000,-501.75808297,0.00017973,2]
[393464409,1762689042010,-150.0,0.00017976,2]
[393464410,1762689042019,-587.0,0.00017976,2]
[393464411,1762689042031,-1000.0,0.00017982,2]
[393464412,1762689042042,-151.0,0.00017991,2]
[393464413,1762689042052,-150.0,0.00017991,2]
[393464414,1762689042062,-150.0,0.00017991,2]
[393464415,1762689042072,-150.0,0.00017991,2]
[393464416,1762689042084,-150.0,0.00017991,2]
[393464417,1762689042095,-150.0,0.00017991,2]
[393464418,1762689042105,-150.0,0.00017991,2]
[393464419,1762689042115,-150.0,0.00017991,2]
[393464420,1762689042124,-689448.62973448,0.00017994,2]
[393464421,1762689042134,-500.0,0.00017994,2]
[393464422,1762689042144,-11122.8832694,0.00017995,2]
[393464423,1762689042153,-302009.9633199,0.00017995,2]
[393464424,1762689042163,-6559.8163286,0.00017995,2]
[393464425,1762689042173,-3339.1419709,0.00017995,2]
[393464426,1762689042182,-150.0,0.00017995,2]
[393464427,1762689042192,-151.0,0.00017997,2]
[393464428,1762689042202,-500.0,0.00017999,2]
[393464429,1762689042212,-1501.58489173,0.00017999,3]
[393464430,1762689042222,-5353888.23422825,0.00018,2]
[393464431,1762689042242,-500.0,0.00018,2]
[393464432,1762689042292,-25918.72920825,0.00018,2]
[393464433,1762689042303,-484.85447689,0.00018,2]
[393464460,1762689042972,-250.0,0.00018,2]
[393464461,1762689042983,-1038.98552268,0.00018,2]
[393464462,1762689042994,-4387.4796,0.00018,2]
[393464463,1762689043006,-430.62277423,0.00018,2]
[393464464,1762689043017,-10032.02199999,0.00018,2]
[393464465,1762689043028,-2603.62516926,0.00018,2]
[393464466,1762689043039,-3359.07949971,0.00018,2]
[393464467,1762689043050,-1128.26844074,0.00018,2]
[393464468,1762689043061,-1367.59,0.00018,2]
[393464469,1762689043072,-6502.71700178,0.00018,2]
[393464470,1762689043109,-479266.36874976,0.00018,2]
[393464473,1762689043472,-3.53942493,0.00018,2]
[393464476,1762689045377,-1.7e-07,0.00018,2]
[393464477,1762689045390,-13279.99999977,0.00018,2]
[393464478,1762689045403,-3506938.72853582,0.00018,2]
[393464479,1762689045412,-884.11616238,0.00018,2]
[393464480,1762689045422,-1179.50015307,0.00018,2]
[393464481,1762689045433,-151.0,0.00018,2]
[393464482,1762689045443,-928.31,0.00018,7]
[393464483,1762689045454,-250.0,0.00018,2]
[393464484,1762689045464,-250.0,0.00018,2]
[393464485,1762689045474,-250.0,0.00018,2]
[393464487,1762689045483,-250.0,0.00018,2]
[393464489,1762689045492,-250.0,0.00018,2]
[393464490,1762689045502,-250.0,0.00018,2]
[393464491,1762689045511,-250.0,0.00018,2]
[393464492,1762689045521,-250.0,0.00018,2]
[393464493,1762689045530,-250.0,0.00018,2]
[393464494,1762689045540,-250.0,0.00018,2]
[393464495,1762689045550,-250.0,0.00018,2]
[393464496,1762689045560,-250.0,0.00018,2]
[393464497,1762689045569,-250.0,0.00018,2]
[393464498,1762689045579,-250.0,0.00018,2]
[393464499,1762689045588,-250.0,0.00018,2]
[393464500,1762689045598,-250.0,0.00018,2]
[393464501,1762689045607,-250.0,0.00018,2]
[393464502,1762689045616,-250.0,0.00018,2]
[393464503,1762689045625,-250.0,0.00018,2]
[393464504,1762689045635,-250.0,0.00018,2]
[393464505,1762689045644,-250.0,0.00018,2]
[393464506,1762689045654,-250.0,0.00018,2]
[393464507,1762689045663,-250.0,0.00018,2]
[393464508,1762689045672,-250.0,0.00018,2]
[393464509,1762689045682,-250.0,0.00018,2]
[393464510,1762689045691,-250.0,0.00018,2]
[393464512,1762689045701,-250.0,0.00018,2]
[393464513,1762689045710,-281.4,0.00018,2]
[393464514,1762689045719,-800.0,0.00018,2]
[393464515,1762689045729,-800.0,0.00018,2]
[393464516,1762689045738,-800.0,0.00018,2]
[393464517,1762689045747,-800.0,0.00018,2]
[393464518,1762689045756,-800.0,0.00018,2]
[393464519,1762689045766,-800.0,0.00018,2]
[393464520,1762689045776,-800.0,0.00018,2]
[393464521,1762689045785,-800.0,0.00018,2]
[393464522,1762689045794,-800.0,0.00018,2]
[393464523,1762689045804,-800.0,0.00018,2]
[393464524,1762689045813,-800.0,0.00018,2]
[393464525,1762689045823,-800.0,0.00018,2]
[393464526,1762689045833,-800.0,0.00018,2]
[393464527,1762689045842,-800.0,0.00018,2]
[393464528,1762689045852,-800.0,0.00018,2]
[393464529,1762689045861,-800.0,0.00018,2]
[393464530,1762689045871,-800.0,0.00018,2]
[393464531,1762689045880,-800.0,0.00018,2]
[393464532,1762689045889,-800.0,0.00018,2]
[393464533,1762689045899,-800.0,0.00018,2]
[393464534,1762689045908,-202.88638753,0.00018,2]
[393464535,1762689045918,-365.19549756,0.00018,2]
[393464536,1762689045928,-649.2364401,0.00018,2]
[393464537,1762689045937,-332.94017181,0.00018,2]
[393464538,1762689045946,-3980.04105,0.00018,2]
[393464539,1762689045956,-3980.04105,0.00018,2]
[393464540,1762689045965,-3980.04104,0.00018,2]
[393464541,1762689045975,-3980.04105,0.00018,2]
[393464542,1762689045984,-3980.04105,0.00018,2]
[393464543,1762689045994,-151.0,0.00018,2]
[393464544,1762689046004,-153.831829,0.00018,2]
[393464545,1762689046013,-151.0,0.00018,2]
[393464546,1762689046024,-153.908026,0.00018,2]
[393464547,1762689046033,-166.837852,0.00018,2]
[393464548,1762689046042,-151.0,0.00018,2]
[393464549,1762689046051,-151.514801,0.00018,2]
[393464550,1762689046061,-154.628871,0.00018,2]
[393464551,1762689046070,-154.628871,0.00018,2]
[393464552,1762689046080,-154.628871,0.00018,2]
[393464553,1762689046089,-2567.176262,0.00018,2]
[393464554,1762689046098,-154.628871,0.00018,2]
[393464555,1762689046107,-696.053668,0.00018,2]
[393464556,1762689046116,-2567.176262,0.00018,2]
[393464557,1762689046126,-191.059476,0.00018,2]
[393464558,1762689046136,-151.0,0.00018,2]
[393464559,1762689046145,-696.053668,0.00018,2]
[393464560,1762689046154,-191.059476,0.00018,2]
[393464561,1762689046164,-2567.176262,0.00018,2]
[393464562,1762689046173,-696.053668,0.00018,2]
[393464563,1762689046182,-191.059476,0.00018,2]
[393464564,1762689046191,-151.0,0.00018,2]
[393464565,1762689046201,-696.053668,0.00018,2]
[393464566,1762689046211,-2567.176262,0.00018,2]
[393464567,1762689046220,-336.546776,0.00018,2]
[393464568,1762689046230,-151.0,0.00018,2]
[393464569,1762689046239,-151.0,0.00018,2]
[393464570,1762689046248,-191.059476,0.00018,2]
[393464571,1762689046257,-336.546776,0.00018,2]
[393464572,1762689046266,-336.546776,0.00018,2]
[393464573,1762689046276,-151.0,0.00018,2]
[393464575,1762689046285,-336.546776,0.00018,2]
[393464576,1762689046294,-151.0,0.00018,2]
[393464577,1762689046304,-151.0,0.00018,2]
[393464578,1762689046314,-338.9931,0.00018,2]
[393464579,1762689046327,-338.9931,0.00018,2]
[393464580,1762689046337,-151.0,0.00018,2]
[393464581,1762689046347,-298.153219,0.00018,2]
[393464582,1762689046356,-338.9931,0.00018,2]
[393464583,1762689046372,-298.153219,0.00018,2]
[393464584,1762689046381,-338.9931,0.00018,2]
[393464585,1762689046391,-298.153219,0.00018,2]
[393464586,1762689046400,-298.153219,0.00018,2]
[393464587,1762689046411,-151.0,0.00018,2]
[393464588,1762689046421,-151.0,0.00018,2]
[393464589,1762689046430,-165.702384,0.00018,2]
[393464590,1762689046441,-151.0,0.00018,2]
[393464591,1762689046451,-151.0,0.00018,2]
[393464592,1762689046460,-995.65575,0.00018,2]
[393464593,1762689046469,-151.0,0.00018,2]
[393464594,1762689046482,-151.0,0.00018,2]
[393464595,1762689046492,-151.0,0.00018,2]
[393464596,1762689046502,-151.0,0.00018,2]
[393464597,1762689046513,-995.65575,0.00018,2]
[393464598,1762689046522,-254.161823,0.00018,2]
[393464599,1762689046531,-151.0,0.00018,2]
[393464600,1762689046541,-995.65575,0.00018,2]
[393464601,1762689046550,-995.65575,0.00018,2]
[393464602,1762689046559,-151.0,0.00018,2]
[393464604,1762689046658,-151.0,0.00018,2]
[393464606,1762689046668,-151.0,0.00018,2]
[393464607,1762689046677,-151.0,0.00018,2]
[393464608,1762689046686,-151.0,0.00018,2]
[393464609,1762689046695,-151.0,0.00018,2]
[393464610,1762689046705,-151.0,0.00018,2]
[393464611,1762689046714,-163.252818,0.00018,2]
[393464612,1762689046723,-151.0,0.00018,2]
[393464613,1762689046732,-1031.362102,0.00018,2]
[393464614,1762689046741,-1031.362102,0.00018,2]
[393464615,1762689046751,-795.0,0.00018018,2]
[393464616,1762689046761,-150.0,0.00018082,2]
[393464617,1762689046771,-1000.0,0.00018082,2]
[393464618,1762689046780,-1789.0,0.00018095,2]
[393464619,1762689046789,-1763.17263167,0.000181,2]
[393464620,1762689046798,-502.0,0.00018102,2]
[393464621,1762689046808,-1789.0,0.00018107,2]
[393464622,1762689046818,-795.0,0.0001812,2]
[393464623,1762689046827,-254.136295,0.00018128,2]
[393464624,1762689046837,-152.76025941,0.00018128,2]
[393464625,1762689046846,-153.77303307,0.00018128,2]
[393464626,1762689046855,-150.0,0.00018128,2]
[393464627,1762689046864,-150.0,0.00018128,2]
[393464628,1762689046874,-152.4860232,0.00018128,2]
[393464629,1762689046883,-151.33732429,0.00018128,2]
[393464630,1762689046892,-2351.0,0.00018159,2]
[393464631,1762689046902,-795.0,0.00018176,2]
[393464632,1762689046911,-166.66,0.00018181,2]
[393464633,1762689046920,-134982.5690281,0.00018216,2]
[393464634,1762689046930,-150.0,0.00018219,2]
[393464635,1762689046939,-502.0,0.00018239,2]
[393464636,1762689046948,-897.75,0.00018239,2]
[393464637,1762689046958,-281.756648,0.00018264,2]
[393464638,1762689046967,-1789.0,0.00018272,2]
[393464639,1762689046976,-166.66,0.00018281,2]
[393464640,1762689046985,-1789.0,0.00018301,2]
[393464641,1762689046995,-795.0,0.00018338,2]
[393464642,1762689047004,-310.4960406,0.00018345,2]
[393464643,1762689047013,-150.0,0.00018356,2]
[393464644,1762689047022,-87614.51,0.00018356,2]
[393464645,1762689047033,-502.0,0.00018376,2]
[393464646,1762689047041,-773.0,0.000184,2]
[393464647,1762689047052,-1789.0,0.00018404,2]
[393464648,1762689047062,-795.0,0.00018424,2]
[393464649,1762689047071,-295.35,0.00018465,2]
[393464650,1762689047084,-162.57231788,0.00018471,2]
[393464651,1762689047093,-250.0,0.00018493,2]
[393464652,1762689047103,-502.0,0.00018513,2]
[393464653,1762689047112,-897.77360344,0.00018513,2]
[393464654,1762689047122,-505.15717151,0.00018521,2]
[393464655,1762689047131,-1002.12377643,0.00018521,2]
[393464656,1762689047140,-633.26693698,0.00018521,2]
[393464657,1762689047150,-1000.0,0.00018521,2]
[393464658,1762689047160,-1000.0,0.00018521,2]
[393464659,1762689047169,-306.39,0.00018561,2]
[393464660,1762689047178,-1789.0,0.00018584,2]
[393464661,1762689047187,-1789.0,0.00018585,2]
[393464662,1762689047196,-478.20968403,0.00018593,2]
[393464663,1762689047205,-1789.0,0.00018593,2]
[393464664,1762689047225,-375.64157914,0.0001863,2]
[393464665,1762689047242,-1473.0,0.0001864,2]
[393464666,1762689047262,-795.0,0.00018649,2]
[393464667,1762689047283,-502.61479719,0.0001865,2]
[393464668,1762689047297,-1231.17535914,0.00018693,2]
[393464669,1762689047317,-1274.0,0.00018693,2]
[393464670,1762689047337,-306.39,0.00018698,2]
[393464671,1762689047356,-1789.0,0.00018734,2]
[393464672,1762689047378,-1000.0,0.0001876,2]
[393464673,1762689047397,-795.0,0.00018762,2]
[393464674,1762689047416,-160.0,0.000188,2]
[393464675,1762689047431,-160.0,0.000188,2]
[393464676,1762689047452,-162.99,0.000188,2]
[393464677,1762689047466,-310.4960406,0.00018818,2]
[393464678,1762689047482,-306.39,0.00018835,2]
[393464679,1762689047497,-1789.0,0.00018931,2]
[393464680,1762689047510,-1789.0,0.00018955,2]
[393464681,1762689047525,-1789.0,0.0001897,2]
[393464682,1762689047541,-1063.7382581,0.0001897,2]
[393464683,1762689047557,-160.0,0.00019,3]
[393464684,1762689047572,-160.0,0.00019,3]
[393464685,1762689047587,-500.0,0.00019,2]
[393464686,1762689047602,-500.0,0.00019,2]
[393464687,1762689047617,-500.0,0.00019,2]
[393464688,1762689047631,-500.0,0.00019,2]
[393464689,1762689047646,-500.0,0.00019,2]
[393464690,1762689047661,-500.0,0.00019,2]
[393464691,1762689047677,-500.0,0.00019,2]
[393464692,1762689047693,-580.15735792,0.00019,2]
[393464693,1762689047708,-938.12681113,0.00019,2]
[393464694,1762689047724,-938.12681113,0.00019,2]
[393464695,1762689047739,-3432.38610346,0.00019,2]
[393464696,1762689047755,-3432.38610346,0.00019,2]
[393464697,1762689047770,-300.0,0.00019,2]
[393464698,1762689047785,-198161.46608752,0.00019,2]
[393464699,1762689047799,-198161.46608752,0.00019,2]
[393464700,1762689047813,-447.0,0.00019,2]
[393464701,1762689047830,-1009.0,0.00019,2]
[393464702,1762689047845,-300.1,0.00019042,2]
[393464703,1762689047860,-352.6,0.00019042,2]
[393464704,1762689047874,-598.56150961,0.00019068,2]
[393464705,1762689047889,-347.38225097,0.00019068,2]
[393464706,1762689047903,-2327.89,0.00019178,2]
[393464707,1762689047919,-3372.45,0.00019178,2]
[393464708,1762689047936,-150.0,0.00019178,2]
[393464709,1762689047952,-1000.0,0.00019243,2]
[393464710,1762689047967,-295.35,0.00019268,2]
[393464711,1762689047982,-300.0,0.00019276,2]
[393464712,1762689047996,-187.05498475,0.000193,2]
[393464713,1762689048011,-423.24962961,0.0001931,5]
[393464714,1762689048025,-180.29,0.0001941,2]
[393464715,1762689048040,-1000.0,0.00019438,2]
[393464716,1762689048055,-823.0,0.00019674,2]
[393464717,1762689048070,-250.0,0.00019726,2]
[393464718,1762689048086,-134982.5690281,0.00019819,2]
[393464719,1762689048100,-2411.86,0.00019864,2]
[393464720,1762689048109,-1205.69,0.00019864,2]
[393464721,1762689048118,-1231.17535914,0.00019894,2]
[393464722,1762689048254,-4875.75949894,0.000199,3]
[393464723,1762689048266,-151.0,0.00019917,7]
[393464724,1762689048280,-151.0,0.00019917,7]
[393464725,1762689048290,-4451.081586,0.00019917,7]
[393464726,1762689048299,-151.0,0.00019917,7]
[393464727,1762689048309,-151.0,0.00019917,7]
[393464728,1762689048318,-4451.081586,0.00019917,7]
[393464729,1762689048328,-151.0,0.00019917,7]
[393464730,1762689048338,-170.193313,0.00019917,7]
[393464731,1762689048347,-151.0,0.00019917,7]
[393464732,1762689048357,-151.0,0.00019917,7]
[393464733,1762689048370,-4451.081586,0.00019917,7]
[393464734,1762689048380,-151.0,0.00019917,7]
[393464735,1762689048389,-153.672685,0.00019917,7]
[393464736,1762689048398,-151.0,0.00019917,7]
[393464737,1762689048409,-4451.081586,0.00019917,7]
[393464738,1762689048419,-151.0,0.00019917,7]
[393464739,1762689048428,-707.661665,0.00019917,7]
[393464740,1762689048439,-151.0,0.00019917,7]
[393464741,1762689048448,-707.661665,0.00019917,7]
[393464742,1762689048458,-151.0,0.00019917,7]
[393464743,1762689048467,-151.0,0.00019917,7]
[393464744,1762689048477,-707.661665,0.00019917,7]
[393464745,1762689048486,-151.0,0.00019917,7]
[393464746,1762689048495,-649.096421,0.00019917,7]
[393464747,1762689048504,-151.0,0.00019917,7]
[393464748,1762689048514,-707.661665,0.00019917,7]
[393464749,1762689048523,-290.456169,0.00019917,7]
[393464750,1762689048533,-152.775424,0.00019917,7]
[393464751,1762689048542,-649.096421,0.00019917,7]
[393464752,1762689048551,-151.0,0.00019917,7]
[393464753,1762689048562,-241.372738,0.00019917,7]
[393464754,1762689048572,-649.096421,0.00019917,7]
[393464755,1762689048581,-241.372738,0.00019917,7]
[393464756,1762689048591,-649.096421,0.00019917,7]
[393464757,1762689048600,-241.372738,0.00019917,7]
[393464758,1762689048609,-241.372738,0.00019917,7]
[393464759,1762689048619,-151.0,0.00019917,7]
[393464760,1762689048627,-151.0,0.00019917,7]
[393464761,1762689048636,-151.0,0.00019917,7]
[393464762,1762689048645,-176.311602,0.00019917,7]
[393464763,1762689048654,-176.311602,0.00019917,7]
[393464764,1762689048664,-151.0,0.00019917,7]
[393464765,1762689048674,-176.311602,0.00019917,7]
[393464766,1762689048683,-151.0,0.00019917,5]
[393464767,1762689048692,-176.311602,0.00019917,7]
[393464768,1762689048703,-151.0,0.00019917,7]
[393464769,1762689048713,-151.0,0.00019917,7]
[393464770,1762689048724,-160.200851,0.00019917,7]
[393464771,1762689048733,-152.599887,0.00019917,7]
[393464772,1762689048742,-170.468976,0.00019917,7]
[393464773,1762689048752,-170.468976,0.00019917,7]
[393464774,1762689048762,-151.0,0.00019917,7]
[393464775,1762689048771,-170.468976,0.00019917,7]
[393464776,1762689048780,-170.468976,0.00019917,7]
[393464777,1762689048790,-151.0,0.00019917,7]
[393464778,1762689048798,-154.628871,0.00019917,7]
[393464779,1762689048807,-154.628871,0.00019917,7]
[393464780,1762689048817,-154.628871,0.00019917,7]
[393464781,1762689048826,-151.0,0.00019917,7]
[393464782,1762689048835,-2567.176262,0.00019917,7]
[393464783,1762689048844,-154.628871,0.00019917,7]
[393464784,1762689048853,-696.053668,0.00019917,7]
[393464785,1762689048863,-151.0,0.00019917,7]
[393464786,1762689048872,-2567.176262,0.00019917,7]
[393464787,1762689048881,-154.109914,0.00019917,7]
[393464788,1762689048890,-191.059476,0.00019917,7]
[393464789,1762689048900,-696.053668,0.00019917,7]
[393464790,1762689048909,-191.059476,0.00019917,7]
[393464791,1762689048919,-696.053668,0.00019917,7]
[393464792,1762689048930,-2567.176262,0.00019917,7]
[393464793,1762689048939,-152.608705,0.00019917,7]
[393464794,1762689048948,-191.059476,0.00019917,7]
[393464795,1762689048958,-696.053668,0.00019917,7]
[393464796,1762689048967,-336.546776,0.00019917,7]
[393464797,1762689048976,-2567.176262,0.00019917,7]
[393464798,1762689048986,-151.0,0.00019917,7]
[393464799,1762689048996,-151.0,0.00019917,7]
[393464800,1762689049006,-191.059476,0.00019917,7]
[393464801,1762689049017,-151.0,0.00019917,7]
[393464802,1762689049026,-336.546776,0.00019917,7]
[393464803,1762689049037,-151.0,0.00019917,7]
[393464804,1762689049047,-336.546776,0.00019917,7]
[393464805,1762689049057,-336.546776,0.00019917,7]
[393464806,1762689049067,-151.0,0.00019917,7]
[393464807,1762689049076,-151.0,0.00019917,7]
[393464808,1762689049085,-338.9931,0.00019917,7]
[393464809,1762689049096,-338.9931,0.00019917,7]
[393464810,1762689049107,-153.31573,0.00019917,7]
[393464811,1762689049116,-298.153219,0.00019917,7]
[393464812,1762689049128,-338.9931,0.00019917,7]
[393464813,1762689049137,-298.153219,0.00019917,7]
[393464814,1762689049148,-338.9931,0.00019917,7]
[393464815,1762689049157,-298.153219,0.00019917,7]
[393464816,1762689049168,-298.153219,0.00019917,7]
[393464817,1762689049179,-151.0,0.00019917,7]
[393464818,1762689049188,-151.0,0.00019917,7]
[393464819,1762689049197,-151.0,0.00019917,7]
[393464820,1762689049207,-151.0,0.00019917,7]